[Event "Titled Tuesday Blitz June 21 Early 2022"]
[White "Ziatdinov, Raset"]
[Black "Kopczynski, Michal"]
[WhiteFideId "2015323"]
[BlackFideId "1124200"]
[WhiteElo "2220"]
[BlackElo "2235"]
[Result "1-0"]
[Round "11"]
[TimeControl "180+1"]
[Date "2022.06.22"]
[WhiteClock "0:02:04"]
[BlackClock "0:00:48"]

1. d4 {[%clk 0:03:00]}  Nf6 {[%clk 0:02:59]} 2. Nc3 {[%clk 0:03:01]}  g6 {[%clk 0:03:00]} 3. Bf4 {[%clk 0:03:01]}  d6 {[%clk 0:03:00]} 4. Qd2 {[%clk 0:03:01]}  Bg7 {[%clk 0:03:00]} 5. O-O-O {[%clk 0:03:02]}  O-O {[%clk 0:03:00]} 6. h4 {[%clk 0:03:02]}  b5 {[%clk 0:02:57]} 7. Bh6 {[%clk 0:03:00]}  b4 {[%clk 0:02:56]} 8. Nb1 {[%clk 0:02:59]}  c5 {[%clk 0:02:44]} 9. h5 {[%clk 0:02:58]}  cxd4 {[%clk 0:02:38]} 10. hxg6 {[%clk 0:02:57]}  fxg6 {[%clk 0:02:39]} 11. Bxg7 {[%clk 0:02:57]}  Kxg7 {[%clk 0:02:40]} 12. Qh6+ {[%clk 0:02:57]}  Kg8 {[%clk 0:02:40]} 13. Nf3 {[%clk 0:02:58]}  e5 {[%clk 0:02:37]} 14. e3 {[%clk 0:02:56]}  Qc7 {[%clk 0:02:27]} 15. exd4 {[%clk 0:02:55]}  Bf5 {[%clk 0:02:26]} 16. Rd2 {[%clk 0:02:45]}  Nc6 {[%clk 0:01:55]} 17. Bc4+ {[%clk 0:02:43]}  d5 {[%clk 0:01:51]} 18. Bb3 {[%clk 0:02:42]}  exd4 {[%clk 0:01:43]} 19. Nxd4 {[%clk 0:02:39]}  Nxd4 {[%clk 0:01:44]} 20. Rxd4 {[%clk 0:02:40]}  Qc5 {[%clk 0:01:36]} 21. Rxd5 {[%clk 0:02:34]}  Qxd5 {[%clk 0:01:19]} 22. Bxd5+ {[%clk 0:02:33]}  Kh8 {[%clk 0:01:20]} 23. Bxa8 {[%clk 0:02:33]}  Rxa8 {[%clk 0:01:21]} 24. Nd2 {[%clk 0:02:32]}  Rc8 {[%clk 0:01:20]} 25. Qg5 {[%clk 0:02:21]}  Rxc2+ {[%clk 0:01:15]} 26. Kd1 {[%clk 0:02:21]}  Kg7 {[%clk 0:01:14]} 27. g4 {[%clk 0:02:18]}  Bd3 {[%clk 0:01:08]} 28. Qe3 {[%clk 0:02:13]}  Nxg4 {[%clk 0:00:58]} 29. Qe7+ {[%clk 0:02:11]}  Kg8 {[%clk 0:00:59]} 30. Qxh7+ {[%clk 0:02:09]}  Kf8 {[%clk 0:00:59]} 31. Qh8+ {[%clk 0:02:09]}  Ke7 {[%clk 0:00:57]} 32. Rh7+ {[%clk 0:02:10]}  Ke6 {[%clk 0:00:56]} 33. Qe8+ {[%clk 0:02:07]}  Kf5 {[%clk 0:00:53]} 34. Rf7+ {[%clk 0:02:04]}  Kg5 {[%clk 0:00:52]} 35. Qe7+ {[%clk 0:02:05]}  Kh5 {[%clk 0:00:48]} 36. Rh7+ {[%clk 0:02:04]}  Nh6 {[%clk 0:00:48]} 37. Rxh6+ {[%clk 0:02:03]}  Kxh6 {[%clk 0:00:48]} 38. Qe3+ {[%clk 0:02:04]} 1-0


[Site "https://www.chess.com"]

[Event "Titled Tuesday Blitz June 21 Early 2022"]
[White "Zierk, Steven"]
[Black "Corrales Jimenez, Fidel"]
[WhiteFideId "2034255"]
[BlackFideId "3506690"]
[WhiteElo "2494"]
[BlackElo "2541"]
[Result "1-0"]
[Round "11"]
[TimeControl "180+1"]
[Date "2022.06.21"]
[WhiteClock "0:00:19"]
[BlackClock "0:00:02"]

1. e4 {[%clk 0:03:00]}  c5 {[%clk 0:02:37]} 2. Nf3 {[%clk 0:03:00]}  d6 {[%clk 0:02:37]} 3. d4 {[%clk 0:03:00]}  cxd4 {[%clk 0:02:38]} 4. Nxd4 {[%clk 0:03:01]}  Nf6 {[%clk 0:02:38]} 5. f3 {[%clk 0:03:01]}  e5 {[%clk 0:02:38]} 6. Nb3 {[%clk 0:03:02]}  Be6 {[%clk 0:02:38]} 7. Nc3 {[%clk 0:02:54]}  d5 {[%clk 0:02:29]} 8. exd5 {[%clk 0:02:52]}  Nxd5 {[%clk 0:02:30]} 9. Nxd5 {[%clk 0:02:48]}  Qxd5 {[%clk 0:02:31]} 10. Qxd5 {[%clk 0:02:42]}  Bxd5 {[%clk 0:02:32]} 11. Be3 {[%clk 0:02:41]}  Nc6 {[%clk 0:02:32]} 12. O-O-O {[%clk 0:02:40]}  O-O-O {[%clk 0:02:31]} 13. Bb5 {[%clk 0:02:35]}  a6 {[%clk 0:01:49]} 14. Be2 {[%clk 0:02:29]}  Kc7 {[%clk 0:01:44]} 15. Nc5 {[%clk 0:02:15]}  Bxc5 {[%clk 0:01:39]} 16. Bxc5 {[%clk 0:02:15]}  f6 {[%clk 0:01:25]} 17. b3 {[%clk 0:02:05]}  b6 {[%clk 0:01:23]} 18. Be3 {[%clk 0:02:04]}  a5 {[%clk 0:01:23]} 19. Rd2 {[%clk 0:02:01]}  Be6 {[%clk 0:01:21]} 20. Rhd1 {[%clk 0:02:01]}  Rxd2 {[%clk 0:01:21]} 21. Rxd2 {[%clk 0:02:02]}  Rd8 {[%clk 0:00:48]} 22. Bd3 {[%clk 0:01:46]}  h6 {[%clk 0:00:44]} 23. c3 {[%clk 0:01:45]}  Ne7 {[%clk 0:00:40]} 24. c4 {[%clk 0:01:38]}  Nc6 {[%clk 0:00:34]} 25. Kb2 {[%clk 0:01:29]}  f5 {[%clk 0:00:28]} 26. f4 {[%clk 0:01:29]}  e4 {[%clk 0:00:26]} 27. Bf1 {[%clk 0:01:25]}  Rxd2+ {[%clk 0:00:26]} 28. Bxd2 {[%clk 0:01:26]}  Nb4 {[%clk 0:00:19]} 29. a3 {[%clk 0:01:14]}  Nd3+ {[%clk 0:00:19]} 30. Kc3 {[%clk 0:01:15]}  Kc6 {[%clk 0:00:13]} 31. Kd4 {[%clk 0:01:13]}  a4 {[%clk 0:00:10]} 32. bxa4 {[%clk 0:01:00]}  Nc5 {[%clk 0:00:09]} 33. Bb4 {[%clk 0:00:59]}  Nxa4 {[%clk 0:00:07]} 34. Bf8 {[%clk 0:00:59]}  g5 {[%clk 0:00:05]} 35. Bxh6 {[%clk 0:00:58]}  g4 {[%clk 0:00:05]} 36. h4 {[%clk 0:00:55]}  gxh3 {[%clk 0:00:06]} 37. gxh3 {[%clk 0:00:55]}  Nc5 {[%clk 0:00:07]} 38. Bf8 {[%clk 0:00:51]}  Nb3+ {[%clk 0:00:06]} 39. Ke5 {[%clk 0:00:50]}  Bg8 {[%clk 0:00:06]} 40. Bb4 {[%clk 0:00:42]}  e3 {[%clk 0:00:07]} 41. h4 {[%clk 0:00:35]}  Nc1 {[%clk 0:00:06]} 42. Kd4 {[%clk 0:00:28]}  e2 {[%clk 0:00:07]} 43. Bg2+ {[%clk 0:00:28]}  Kd7 {[%clk 0:00:07]} 44. Bd5 {[%clk 0:00:25]}  Bxd5 {[%clk 0:00:05]} 45. cxd5 {[%clk 0:00:26]}  Nb3+ {[%clk 0:00:05]} 46. Ke3 {[%clk 0:00:26]}  Nc5 {[%clk 0:00:02]} 47. Kxe2 {[%clk 0:00:25]}  Ne4 {[%clk 0:00:03]} 48. Ke3 {[%clk 0:00:23]}  Nf6 {[%clk 0:00:03]} 49. Kd4 {[%clk 0:00:23]}  Ng4 {[%clk 0:00:03]} 50. h5 {[%clk 0:00:23]}  Ke8 {[%clk 0:00:02]} 51. Bd6 {[%clk 0:00:21]}  Kd7 {[%clk 0:00:02]} 52. Be5 {[%clk 0:00:21]}  Ke7 {[%clk 0:00:03]} 53. Bc7 {[%clk 0:00:19]}  b5 {[%clk 0:00:03]} 54. Kc5 {[%clk 0:00:19]}  Kd7 {[%clk 0:00:03]} 55. Be5 {[%clk 0:00:19]}  Nf2 {[%clk 0:00:02]} 56. Kxb5 {[%clk 0:00:19]}  Ne4 {[%clk 0:00:02]} 57. Kc4 {[%clk 0:00:19]}  Ke7 {[%clk 0:00:02]} 58. h6 {[%clk 0:00:19]} 1-0